bitfinex/quotes_SOLUSD_20220114
["timestamp","ask_amount","ask_price","bid_price","bid_amount"]
[1642129649877,8.967,147.2,147.13,23.2978]
[1642129650278,2.967,147.2,147.13,23.2978]
[1642129650478,2.717,147.2,147.13,23.5478]
[1642129650679,2.717,147.2,147.13,33.7402]
[1642129650882,27.96794316,147.21,147.13,36.4582]
[1642129651288,3.53544316,147.21,147.13,36.4582]
[1642129651916,29.01154316,147.23,147.13,36.4582]
[1642129652117,10.1928,147.22,147.13,33.7402]
[1642129652316,2.717,147.21,147.13,33.7402]
[1642129653517,2.967,147.21,147.13,33.7402]
[1642129653918,0.25,147.21,147.13,33.7402]
[1642129654317,3.53544316,147.23,147.13,39.7402]
[1642129654517,3.53544316,147.23,147.18,10.1889]
[1642129654720,3.53544316,147.23,147.19,31.23701222]
[1642129655118,7.40980884,147.24,147.19,31.48701222]
[1642129655923,7.40980884,147.24,147.19,37.48701222]
[1642129656122,3.53544316,147.24,147.2,10.1871]
[1642129656318,2.717,147.27,147.2,10.1871]
[1642129656319,6.25244316,147.27,147.2,10.1871]
[1642129656522,3.53544316,147.27,147.2,10.4371]
[1642129656719,2.716,147.26,147.2,10.4371]
[1642129657819,2.716,147.26,147.2,0.25]
[1642129658019,2.966,147.26,147.19,31.48701222]
[1642129658921,0.25,147.26,147.19,31.48701222]
[1642129659323,16.69034316,147.27,147.19,31.48701222]
[1642129660322,16.69034316,147.27,147.19,31.23701222]
[1642129660521,92.06581565,147.27,147.19,31.23701222]
[1642129662131,10.1911,147.24,147.19,31.23701222]
[1642129662336,2.717,147.23,147.19,31.23701222]
[1642129662528,2.967,147.23,147.19,31.23701222]
[1642129663626,10.1911,147.24,147.19,31.23701222]
[1642129665030,2.717,147.23,147.19,31.23701222]
[1642129665227,12.9086,147.23,147.19,31.23701222]
[1642129665429,13.1586,147.23,147.19,31.23701222]
[1642129665629,13.1586,147.23,147.16,23.2289]
[1642129665831,10.4416,147.23,147.16,23.4789]
[1642129666627,10.4416,147.23,147.17,25.54460015]
[1642129668332,2.717,147.22,147.17,25.54460015]
[1642129668533,10.193,147.21,147.17,25.54460015]
[1642129670163,10.193,147.21,147.15,22.871]
[1642129670334,10.193,147.21,147.14,2.717]
[1642129670335,2.717,147.2,147.14,2.717]
[1642129670535,10.1951,147.18,147.14,2.717]
[1642129670934,10.4451,147.18,147.14,2.717]
[1642129671135,2.717,147.2,147.15,25.13537676]
[1642129671334,0.25,147.18,147.15,25.13537676]
[1642129671534,8.717,147.22,147.15,24.13537676]
[1642129671736,2.967,147.22,147.15,24.13537676]
[1642129671935,2.967,147.22,147.15,24.38537676]
[1642129671936,10.1943,147.2,147.15,24.38537676]
[1642129672135,6.50244316,147.22,147.15,24.13537676]
[1642129672336,6.50244316,147.22,147.15,24.38537676]
[1642129672936,2.967,147.22,147.15,24.38537676]
[1642129673139,13.1597,147.22,147.15,24.38537676]
[1642129674441,19.1597,147.22,147.15,24.38537676]
[1642129676442,13.1597,147.22,147.15,24.38537676]
[1642129679044,13.1597,147.22,147.15,30.38537676]
[1642129679643,10.1927,147.22,147.15,30.38537676]
[1642129680044,10.1927,147.22,147.15,30.13537676]
[1642129680241,10.1927,147.22,147.15,24.13537676]
[1642129680644,2.717,147.21,147.15,24.13537676]
[1642129680942,13.1606,147.21,147.15,24.13537676]
[1642129681145,10.4436,147.21,147.15,24.13537676]
[1642129681345,0.25,147.21,147.15,24.13537676]
[1642129681543,2.967,147.22,147.15,24.13537676]
[1642129681947,13.1598,147.22,147.15,24.13537676]
[1642129682146,2.717,147.22,147.15,24.13537676]
[1642129682546,2.717,147.22,147.15,24.38537676]
[1642129682746,27.39,147.23,147.15,24.38537676]
[1642129682949,2.717,147.24,147.15,24.38537676]
[1642129683148,12.9086,147.24,147.16,23.6083]
[1642129683547,12.9086,147.24,147.16,23.8583]
[1642129683748,13.1586,147.24,147.16,23.8583]
[1642129684447,19.1586,147.24,147.16,23.8583]
[1642129686483,19.1586,147.24,147.16,23.6083]
[1642129687085,86.8386,147.24,147.16,23.6083]
[1642129687282,20.85407249,147.24,147.16,23.6083]
[1642129687482,20.85407249,147.24,147.15,24.13537676]
[1642129687683,20.85407249,147.24,147.12,24.8756]
[1642129687684,27.71307249,147.24,147.12,24.8756]
[1642129687882,31.16588215,147.23,147.12,24.8756]
[1642129688084,10.1949,147.19,147.12,25.1256]
[1642129688283,2.718,147.18,147.12,25.1256]
[1642129688485,0.25,147.18,147.12,31.1256]
[1642129688686,0.25,147.18,147.13,28.36675216]
[1642129689288,10.4457,147.18,147.13,28.36675216]
[1642129690185,10.4457,147.18,147.12,25.1256]
[1642129691283,10.4457,147.18,147.12,53.65375831]
[1642129691685,16.4457,147.18,147.12,53.65375831]
[1642129692886,10.4457,147.18,147.12,53.65375831]
[1642129693086,16.4457,147.18,147.12,53.65375831]
[1642129696788,0.25,147.18,147.12,53.65375831]
[1642129696992,13.1625,147.2,147.12,53.65375831]
[1642129697388,2.718,147.2,147.12,53.65375831]
[1642129698292,2.718,147.21,147.12,63.84685831]
[1642129698697,2.718,147.22,147.12,73.62685831]
[1642129698891,3.53544316,147.23,147.12,79.88685831]
[1642129699093,3.53544316,147.23,147.12,81.5823308]
[1642129699694,6.25244316,147.25,147.12,81.5823308]
[1642129699897,3.53544316,147.25,147.12,81.5823308]
[1642129700093,2.717,147.24,147.12,81.5823308]
[1642129701095,2.717,147.26,147.12,81.5823308]
[1642129701696,12.9074,147.26,147.12,81.5823308]
[1642129702096,12.9074,147.26,147.12,149.2623308]
[1642129702699,12.9074,147.26,147.12,79.62685831]
[1642129702898,80.5874,147.26,147.12,81.3223308]
[1642129703100,23.0893,147.25,147.12,79.62685831]
[1642129703300,10.1926,147.23,147.12,79.62685831]
[1642129703501,2.717,147.22,147.12,79.62685831]
[1642129703932,2.967,147.22,147.12,79.62685831]
[1642129704301,0.25,147.22,147.12,79.62685831]
[1642129705101,10.1928,147.22,147.12,79.62685831]
[1642129705301,10.4428,147.22,147.12,79.62685831]
[1642129706502,2.717,147.21,147.12,79.62685831]
[1642129706702,12.9106,147.21,147.12,73.62685831]
[1642129707004,13.1606,147.21,147.12,73.62685831]
[1642129707201,10.1936,147.21,147.12,63.43375831]
[1642129708302,10.1936,147.21,147.12,73.62675831]
[1642129708502,10.4436,147.21,147.12,73.62675831]
[1642129708703,10.1936,147.21,147.12,73.62675831]
[1642129709609,2.718,147.2,147.12,73.62675831]
[1642129709803,10.1936,147.21,147.12,73.62675831]
[1642129710406,10.4436,147.21,147.12,73.62675831]
[1642129712005,6.25,147.21,147.12,73.62675831]
[1642129712205,0.25,147.21,147.12,73.62675831]
[1642129712605,2.718,147.22,147.12,79.62675831]
[1642129712808,2.717,147.24,147.13,2.717]
[1642129713007,2.717,147.24,147.18,23.30283299]
[1642129713208,3.53544316,147.25,147.18,23.30283299]
[1642129713408,2.717,147.24,147.18,23.30283299]
[1642129713609,3.53544316,147.26,147.18,23.30283299]
[1642129713610,8.717,147.25,147.18,23.30283299]
[1642129714211,8.967,147.25,147.18,23.30283299]
[1642129714410,8.967,147.25,147.14,34.5253]
[1642129714610,23.4037,147.24,147.15,10.1906]
[1642129714810,2.717,147.23,147.15,19.9706]
[1642129715015,2.967,147.23,147.15,20.2206]
[1642129715418,2.967,147.23,147.16,31.99357621]
[1642129715813,2.967,147.23,147.16,32.24357621]
[1642129721743,13.1591,147.23,147.16,32.24357621]
[1642129721943,19.1591,147.23,147.16,32.24357621]
[1642129732066,19.1591,147.23,147.16,0.25]
[1642129732564,19.1591,147.23,147.14,24.9953]
[1642129733161,19.1591,147.23,147.14,48.53311767]
[1642129736667,19.1591,147.23,147.14,24.9953]
[1642129737577,19.1591,147.23,147.14,47.63705666]
[1642129737794,22.69454316,147.23,147.14,47.63705666]
[1642129738495,90.37454316,147.23,147.14,47.63705666]
[1642129740597,22.69454316,147.23,147.14,47.63705666]
[1642129741096,90.37454316,147.23,147.14,47.63705666]
[1642129743300,90.37454316,147.23,147.14,24.9953]
[1642129743500,92.07001565,147.23,147.14,24.9953]
[1642129747205,92.07001565,147.23,147.11,41.46221252]
[1642129747410,67.68,147.21,147.12,24.0222]
[1642129747610,9.6957,147.18,147.12,24.0222]
[1642129747808,9.9457,147.18,147.1,23.6819]
[1642129748006,9.9457,147.18,147.1,2.718]
[1642129748207,2.718,147.17,147.07,13.65241675]
[1642129748410,26.1259,147.17,147.08,22.78981505]
[1642129748714,10.1975,147.15,147.08,22.78981505]
[1642129749007,10.1975,147.15,147.08,52.62068224]
[1642129750009,10.1975,147.15,147.08,52.87068224]
[1642129751708,13.1655,147.15,147.08,52.87068224]
[1642129751909,19.1655,147.15,147.08,52.87068224]
[1642129752711,21.10250849,147.15,147.08,52.62068224]
[1642129753812,18.38450849,147.15,147.08,52.62068224]
[1642129754014,12.38450849,147.15,147.08,52.87068224]
[1642129755016,10.4475,147.15,147.08,52.87068224]
[1642129757042,2.718,147.14,147.08,52.87068224]
[1642129757441,2.968,147.14,147.08,52.87068224]
[1642129758446,2.718,147.14,147.08,52.87068224]
[1642129758645,2.718,147.14,147.08,52.62068224]
[1642129758845,2.718,147.14,147.08,52.87068224]
[1642129759044,6.0,147.14,147.08,52.62068224]
[1642129759244,1.93700849,147.15,147.08,52.87068224]
[1642129759445,2.718,147.14,147.08,52.87068224]
[1642129759844,2.968,147.14,147.08,52.87068224]
[1642129760246,13.1662,147.14,147.08,52.62068224]
[1642129761745,2.968,147.14,147.08,52.62068224]
[1642129761947,24.93050849,147.15,147.08,52.87068224]
[1642129761948,1.93700849,147.15,147.08,52.87068224]
[1642129762948,1.93700849,147.15,147.08,63.06658224]
[1642129763850,1.93700849,147.15,147.08,65.01546157]
[1642129764052,12.13320849,147.17,147.08,65.01546157]
[1642129764549,1.93700849,147.17,147.08,65.01546157]
[1642129764750,1.93700849,147.17,147.12,10.193]
[1642129764950,1.93700849,147.17,147.13,24.67886547]
[1642129765351,1.93700849,147.17,147.13,24.92886547]
[1642129766154,1.93700849,147.17,147.13,35.12126547]
[1642129766650,5.47245165,147.2,147.13,35.12126547]
[1642129767351,5.47245165,147.2,147.13,44.90126547]
[1642129767550,1.93700849,147.2,147.13,44.90126547]
[1642129767952,1.93700849,147.2,147.13,50.90126547]
[1642129768150,1.93700849,147.2,147.14,12.9098]
[1642129768550,1.93700849,147.2,147.14,13.1598]
[1642129769254,1.93700849,147.21,147.14,13.1598]
[1642129772859,1.93700849,147.21,147.15,9.78]
[1642129773061,1.93700849,147.21,147.17,10.1895]
[1642129773259,8.49e-06,147.21,147.18,62.0]
[1642129773459,8.49e-06,147.21,147.19,8.7812]
[1642129773759,8.49e-06,147.21,147.2,31.37730191]
[1642129773965,8.49e-06,147.21,147.2,37.62730191]
[1642129774166,8.49e-06,147.21,147.2,47.81330191]
[1642129774965,3.53544316,147.24,147.2,47.81330191]
[1642129775193,3.53544316,147.28,147.2,47.81330191]
[1642129775863,3.53544316,147.28,147.21,9.78]
[1642129776063,3.53544316,147.28,147.24,10.1842]
[1642129776263,3.53544316,147.28,147.25,26.43734145]
[1642129776463,0.00544316,147.28,147.26,6.0642]
[1642129776662,5.28743379,147.31,147.26,6.0642]
[1642129776663,3.8946628,147.3,147.26,8.7802]
[1642129776863,3.8946628,147.3,147.26,15.0302]
[1642129777263,0.8068628,147.3,147.26,34.9929]
[1642129777463,0.8068628,147.3,147.26,102.9329]
[1642129777864,8.00243379,147.38,147.28,30.20375563]
[1642129778064,8.00243379,147.38,147.28,36.45375563]
[1642129779066,18.18393379,147.38,147.29,10.1812]
[1642129779365,3.89320485,147.37,147.29,10.1812]
[1642129779569,2.714,147.36,147.29,10.4312]
[1642129779965,2.714,147.36,147.29,0.25]
[1642129780466,2.714,147.36,147.28,46.63585563]
[1642129781066,2.714,147.36,147.28,36.45375563]
[1642129781267,2.715,147.38,147.28,30.20375563]
[1642129781468,12.12837249,147.36,147.28,30.20375563]
[1642129781668,2.715,147.35,147.28,30.20375563]
[1642129782067,4.66047249,147.35,147.28,30.20375563]
[1642129782366,2.965,147.35,147.28,30.20375563]
[1642129782767,3.89365102,147.34,147.28,30.20375563]
[1642129782967,2.715,147.33,147.28,30.20375563]
[1642129783378,2.965,147.33,147.28,30.20375563]
[1642129783566,2.965,147.33,147.26,34.3753]
[1642129783767,2.965,147.33,147.26,9.78]
[1642129784169,13.1501,147.33,147.26,9.78]
[1642129784368,14.84557249,147.33,147.26,9.78]
[1642129784668,12.9001,147.33,147.27,26.5793094]
[1642129785669,12.9001,147.33,147.23,34.0777]
[1642129785870,13.1501,147.33,147.23,34.0777]
[1642129786069,14.84557249,147.33,147.23,34.3277]
[1642129786672,14.84557249,147.33,147.24,24.48111335]
[1642129786868,82.52557249,147.33,147.24,24.48111335]
[1642129787068,3.89435063,147.32,147.24,24.73111335]
[1642129787270,10.1881,147.29,147.24,24.73111335]
[1642129787970,2.715,147.31,147.24,24.73111335]
[1642129788983,2.716,147.34,147.24,24.73111335]
[1642129789271,12.9009,147.34,147.24,34.91581335]
[1642129789672,3.89396952,147.33,147.24,34.91581335]
[1642129790471,4.14396952,147.33,147.24,34.91581335]
[1642129790875,4.14396952,147.33,147.24,37.63081335]
[1642129791074,3.89396952,147.33,147.25,9.78]
[1642129791274,3.89396952,147.33,147.26,12.8982]
[1642129791573,3.89396952,147.33,147.27,26.98030793]
[1642129791773,2.715,147.35,147.27,26.98030793]
[1642129791975,15.47093379,147.36,147.27,26.98030793]
[1642129792173,2.715,147.35,147.27,26.98030793]
[1642129792672,16.79212672,147.35,147.27,26.98030793]
[1642129793075,17.04212672,147.35,147.27,26.98030793]
[1642129793479,17.04212672,147.35,147.27,27.23030793]
[1642129793678,3.89342672,147.34,147.27,27.23030793]
[1642129794078,4.14342672,147.34,147.27,27.23030793]
[1642129794681,3.89342672,147.34,147.27,27.23030793]
[1642129796082,10.1837,147.35,147.27,27.23030793]
[1642129798913,12.8978,147.37,147.27,37.41310793]
[1642129799112,13.1478,147.37,147.27,37.16310793]
[1642129799313,3.89352642,147.34,147.27,37.16310793]
[1642129800216,3.89352642,147.36,147.27,43.16310793]
[1642129800416,3.89352642,147.36,147.27,43.41310793]
[1642129800615,4.14352642,147.36,147.27,43.41310793]
[1642129800815,3.89352642,147.36,147.27,43.41310793]
[1642129801116,14.07622642,147.36,147.27,43.41310793]
[1642129801318,14.32622642,147.36,147.27,43.16310793]
[1642129801517,2.715,147.35,147.27,43.16310793]
[1642129801716,2.715,147.35,147.27,37.41310793]
[1642129801917,2.965,147.35,147.27,27.23030793]
[1642129802118,2.965,147.35,147.27,37.01030793]
[1642129802318,0.25,147.35,147.27,37.01030793]
[1642129802520,2.715,147.34,147.27,37.01030793]
[1642129803018,2.965,147.34,147.27,37.01030793]
[1642129803219,13.1484,147.34,147.27,37.01030793]
[1642129803422,10.1834,147.34,147.27,37.01030793]
[1642129805020,10.4334,147.34,147.27,37.01030793]
[1642129805223,10.1834,147.34,147.27,37.01030793]
[1642129811431,10.4334,147.34,147.27,37.01030793]
[1642129812034,10.1834,147.34,147.27,37.01030793]
[1642129812435,10.4334,147.34,147.27,27.23030793]
[1642129812634,16.4334,147.34,147.27,27.23030793]
[1642129814735,10.4334,147.34,147.27,27.23030793]
[1642129816036,16.4334,147.34,147.27,27.23030793]
[1642129816236,10.4334,147.34,147.27,27.23030793]
[1642129817538,13.1484,147.34,147.27,27.23030793]
[1642129819943,19.1484,147.34,147.27,27.23030793]
[1642129822543,19.1484,147.34,147.27,0.25]
[1642129822743,13.1484,147.34,147.26,0.25]
[1642129822944,19.1484,147.34,147.25,2.965]
[1642129823142,20.84387249,147.34,147.25,2.715]
[1642129823344,14.84387249,147.34,147.25,8.715]
[1642129823544,20.84387249,147.34,147.25,2.715]
[1642129824176,20.84387249,147.34,147.24,9.78]
[1642129824375,88.52387249,147.34,147.24,12.495]
[1642129824576,88.52387249,147.34,147.24,12.745]
[1642129825080,88.52387249,147.34,147.24,12.495]
[1642129825278,106.46271249,147.34,147.24,2.715]
[1642129825678,117.7081008,147.34,147.24,2.715]
[1642129825878,124.42040053,147.34,147.24,2.715]
[1642129826783,10.1907,147.29,147.24,2.715]
[1642129826982,2.716,147.28,147.24,2.715]
[1642129827380,2.966,147.28,147.24,2.715]
[1642129827785,0.25,147.28,147.24,2.715]
[1642129827982,2.716,147.27,147.24,2.715]
[1642129828182,10.1905,147.26,147.24,2.715]
[1642129828380,2.716,147.25,147.24,2.715]
[1642129828582,2.966,147.25,147.24,2.715]
[1642129829381,2.966,147.25,147.16,9.78]
[1642129830083,4.66147249,147.25,147.14,2.716]
[1642129830283,10.1946,147.2,147.15,24.03377221]
[1642129830480,10.4446,147.2,147.15,24.03377221]
[1642129830683,16.4446,147.2,147.15,24.03377221]
[1642129832085,10.1946,147.2,147.15,24.28377221]
[1642129832285,2.717,147.21,147.15,24.28377221]
[1642129832486,0.25,147.21,147.15,24.28377221]
[1642129833386,36.9441,147.24,147.15,24.03377221]
[1642129833587,10.1929,147.21,147.15,24.03377221]
[1642129833787,2.717,147.2,147.15,24.03377221]
[1642129833987,0.25,147.2,147.15,24.03377221]
[1642129835297,10.1943,147.19,147.15,24.03377221]
[1642129842794,12.9104,147.21,147.15,24.03377221]
[1642129842995,2.717,147.22,147.15,24.28377221]
[1642129843197,2.717,147.26,147.15,29.39277221]
[1642129843395,2.717,147.27,147.15,35.39277221]
[1642129843595,2.717,147.27,147.16,27.1149]
[1642129843795,2.717,147.27,147.17,10.1897]
[1642129843998,2.717,147.27,147.18,28.20844644]
[1642129844395,2.717,147.27,147.18,28.45844644]
[1642129844594,2.967,147.27,147.18,28.45844644]
[1642129845202,13.1564,147.27,147.18,28.45844644]
[1642129845398,13.1564,147.27,147.18,51.85914644]
[1642129846600,19.1564,147.27,147.18,51.85914644]
[1642129850503,19.1564,147.27,147.18,57.85914644]
[1642129850902,13.1564,147.27,147.18,57.85914644]
[1642129854313,13.1564,147.27,147.18,51.85914644]
[1642129854511,19.1564,147.27,147.18,51.85914644]
[1642129857315,1.69547249,147.26,147.18,28.45844644]
[1642129857513,10.1926,147.22,147.18,28.45844644]
[1642129859835,16.1926,147.22,147.18,0.25]
[1642129860038,16.1926,147.22,147.15,24.3126]
[1642129860836,10.1926,147.22,147.15,55.17928491]
[1642129865442,6.0,147.22,147.15,55.17928491]
[1642129865639,2.717,147.23,147.15,61.17928491]
[1642129865840,27.673,147.25,147.15,77.40428491]
[1642129866140,27.923,147.25,147.15,77.40428491]
[1642129866342,25.206,147.25,147.15,77.40428491]
[1642129867146,25.206,147.25,147.15,87.59528491]
[1642129867344,27.923,147.25,147.16,2.717]
[1642129867541,27.923,147.25,147.17,22.5303]
[1642129867743,27.923,147.25,147.18,29.67485772]
[1642129867943,27.923,147.25,147.18,29.92485772]
[1642129868146,38.1135,147.25,147.18,29.92485772]
[1642129868343,35.3965,147.25,147.18,29.92485772]
[1642129868645,35.3965,147.25,147.18,28.22764116]
[1642129869443,41.3965,147.25,147.18,28.22764116]
[1642129869644,2.717,147.24,147.18,28.22764116]
[1642129869851,10.1927,147.22,147.18,28.22764116]
[1642129871244,10.1927,147.22,147.14,25.876]
[1642129871444,10.4427,147.22,147.14,2.717]
[1642129871847,2.717,147.21,147.14,2.717]
[1642129872046,10.1951,147.19,147.14,2.717]
[1642129872245,10.1951,147.19,147.14,30.16501482]
[1642129872654,10.1951,147.19,147.14,30.41501482]
[1642129872850,10.1951,147.19,147.14,2.717]
[1642129873048,10.196,147.17,147.14,2.717]
[1642129873449,2.718,147.16,147.14,2.717]
[1642129873855,2.968,147.16,147.14,2.717]
[1642129874256,0.25,147.16,147.14,2.717]
[1642129874455,2.718,147.15,147.14,2.717]
[1642129874855,2.968,147.15,147.14,2.717]
[1642129876488,2.968,147.15,147.1,28.12440375]
[1642129876690,10.1983,147.14,147.1,28.12440375]
[1642129876890,2.718,147.13,147.1,28.12440375]
[1642129877094,2.968,147.13,147.1,28.12440375]
[1642129879895,13.1668,147.13,147.07,23.6887]
[1642129880302,19.1668,147.13,147.07,23.6887]
[1642129880498,19.1668,147.13,147.04,27.03886755]
[1642129880899,19.1668,147.13,147.05,24.85730906]
[1642129883000,67.68,147.12,147.05,24.85730906]
[1642129883200,10.2021,147.09,147.02,27.1695]
[1642129883399,10.2021,147.09,147.02,33.4195]
[1642129884102,15.9011,147.09,147.02,33.4195]
[1642129884302,16.1511,147.09,147.02,33.4195]
[1642129884503,10.2033,147.07,147.02,30.7005]
[1642129887011,16.2033,147.07,147.02,30.7005]
[1642129887811,10.2033,147.07,147.02,6.0]
[1642129888014,10.4533,147.07,147.01,28.24644797]
[1642129889314,10.4533,147.07,147.01,34.49644797]
[1642129890614,22.1633,147.07,146.99,27.5769]
[1642129890816,2.72,147.06,146.99,2.72]
[1642129891013,10.2069,147.03,146.99,2.72]
[1642129891213,2.72,147.02,146.99,2.72]
[1642129891418,2.72,147.05,146.99,2.72]
[1642129891616,2.72,147.05,147.0,23.17967829]
[1642129891814,2.72,147.08,147.0,23.17967829]
[1642129892014,2.97,147.08,147.0,23.17967829]
[1642129893019,2.97,147.08,147.0,23.42967829]
[1642129893218,13.1729,147.08,147.0,23.42967829]
[1642129894520,13.1729,147.08,147.0,25.37956599]
[1642129896860,13.1729,147.08,147.01,1.9498877]
[1642129897063,13.1729,147.08,147.01,2.1998877]
[1642129898963,19.1729,147.08,147.01,2.1998877]
[1642129899663,19.1729,147.08,147.01,0.25]
[1642129899866,19.1729,147.08,147.0,49.79846599]
[1642129900965,26.03237249,147.08,147.0,49.79846599]
[1642129901866,26.03237249,147.08,147.0,25.12956599]
[1642129902065,10.2054,147.04,147.0,23.17967829]
[1642129905082,2.72,147.06,147.0,23.17967829]
[1642129905468,2.97,147.06,147.0,23.42967829]
[1642129906070,2.97,147.06,147.0,25.37956599]
[1642129907070,13.174,147.06,147.0,25.12956599]
[1642129907272,13.174,147.06,147.0,1.9498877]
[1642129908272,13.174,147.06,146.97,22.9745]
[1642129908273,13.174,147.06,146.98,1.9498877]
[1642129908572,1.69547249,147.05,146.98,1.9498877]
[1642129908771,10.21,147.02,146.98,1.9498877]
[1642129908972,2.721,147.01,146.98,1.9498877]
[1642129909372,2.971,147.01,146.97,1.9498877]
[1642129909772,10.2095,147.0,146.97,1.9498877]
[1642129909972,2.721,146.99,146.97,1.9498877]
[1642129910373,2.971,146.99,146.97,1.9498877]
[1642129910774,10.2113,146.98,146.94,26.8944877]
[1642129912472,10.2113,146.98,146.93,26.93815663]
[1642129912672,10.4613,146.98,146.93,26.93815663]
[1642129912874,13.1823,146.98,146.93,26.93815663]
[1642129913074,10.4613,146.98,146.93,26.93815663]
[1642129914075,10.2122,146.95,146.93,26.93815663]
[1642129914278,10.2122,146.95,146.93,1.9498877]
[1642129914874,10.2122,146.95,146.92,1.9498877]
[1642129915278,12.932,146.97,146.93,28.06910054]
[1642129915476,13.182,146.97,146.93,28.06910054]
[1642129915877,10.461,146.97,146.93,28.06910054]
[1642129916075,2.722,146.96,146.93,28.06910054]
[1642129916676,2.722,146.96,146.93,30.01898824]
[1642129916876,10.461,146.97,146.93,30.01898824]
[1642129917076,10.211,146.97,146.93,30.01898824]
[1642129917280,2.722,147.0,146.93,30.01898824]
[1642129917579,2.722,147.0,146.93,44.89010054]
[1642129917777,2.721,147.02,146.93,50.89010054]
[1642129918678,2.721,147.02,146.96,28.4056758]
[1642129918879,4.5711098,147.05,146.96,28.4056758]
[1642129919077,4.5711098,147.05,146.97,23.1804]
[1642129919277,1.8501098,147.05,146.97,23.1804]
[1642129919477,1.8501098,147.05,146.97,23.4304]
[1642129919882,7.8501098,147.05,146.97,23.4304]
[1642129920080,7.8501098,147.05,146.97,0.25]
[1642129920279,8.1001098,147.05,146.96,28.4056758]
[1642129920484,2.72,147.04,146.96,28.6556758]
[1642129920681,2.72,147.04,146.96,30.6055635]
[1642129920883,2.97,147.04,146.96,30.6055635]
[1642129921082,13.1763,147.04,146.96,30.6055635]
[1642129921884,13.1763,147.04,146.96,28.6556758]
[1642129922084,13.1763,147.04,146.96,28.4056758]
[1642129922486,19.1763,147.04,146.96,28.4056758]
[1642129923089,86.8563,147.04,146.95,1.9498877]
[1642129923290,96.6363,147.04,146.95,1.9498877]
[1642129923592,98.4864098,147.04,146.94,1.9498877]
[1642129923789,8.15884,147.03,146.94,1.9498877]
[1642129923988,10.2122,146.98,146.94,1.9498877]
[1642129924194,2.721,146.97,146.94,1.9498877]
[1642129924392,2.971,146.98,146.92,29.02557132]
[1642129924589,0.25,146.97,146.92,29.02557132]
[1642129925492,2.972,147.01,146.92,27.07568362]
[1642129925691,10.2108,146.98,146.92,27.07568362]
[1642129926093,10.4608,146.98,146.92,27.07568362]
[1642129926993,2.722,146.97,146.92,27.07568362]
[1642129927194,12.9335,146.97,146.92,27.07568362]
[1642129927399,13.1835,146.97,146.92,27.07568362]
[1642129927801,10.4615,146.97,146.92,27.07568362]
[1642129930317,10.4615,146.97,146.91,1.9498877]
[1642129930519,10.2138,146.94,146.91,1.9498877]
[1642129930819,10.2138,146.94,146.91,7.9498877]
[1642129931017,10.4638,146.94,146.91,7.9498877]
[1642129931221,10.4638,146.94,146.91,1.9498877]
[1642129932518,10.4638,146.94,146.9,23.1619]
[1642129932719,10.4638,146.94,146.9,29.1619]
[1642129932918,10.4638,146.94,146.9,6.0]
[1642129933117,10.4638,146.94,146.89,7.9498877]
[1642129933318,10.4638,146.94,146.89,1.9498877]
[1642129933519,10.4638,146.94,146.89,7.9498877]
[1642129934719,10.4638,146.94,146.89,1.9498877]
[1642129934920,10.4638,146.94,146.89,7.9498877]
[1642129935120,10.4638,146.94,146.89,1.9498877]
[1642129936020,16.4638,146.94,146.89,1.9498877]
[1642129937619,10.4638,146.94,146.89,1.9498877]
[1642129938020,2.722,146.93,146.89,1.9498877]
[1642129938223,10.2166,146.91,146.89,1.9498877]
[1642129938423,10.2166,146.91,146.88,1.9498877]
[1642129938621,10.4666,146.91,146.88,1.9498877]
[1642129939521,0.25,146.91,146.87,24.3084]
[1642129939721,0.25,146.91,146.87,30.3084]
[1642129939923,2.972,146.93,146.87,53.55592233]
[1642129940325,0.25,146.93,146.87,53.55592233]
[1642129940524,2.722,146.92,146.87,53.55592233]
[1642129940725,2.723,146.93,146.87,53.55592233]
[1642129941124,0.25,146.93,146.87,53.55592233]